{"text_format":"1","workbook":"xlsx","n_sheets":1,"sheets":["Prijslijst"],"not_rendered":{"charts":0,"images":1,"macros":1,"external_links":0,"defined_names":4,"comments":0,"pivot_tables":0},"unopened":[],"bounds":{"document_bytes":16777216,"sheet_cells":100000,"rows_first":2000,"rows_last":500,"rows_between":2000,"halvings":0,"cell_chars":16384,"cell_head_chars":4096},"cells_cut":0,"cells_raw":0,"read":"whole","date_system":"1900"}

{"sheet":"Prijslijst","index":0,"n_rows":160,"n_cols":6,"rows_kept":160,"cut":false,"hidden":false,"merged":[[0,1,0,5],[1,1,1,5],[9,1,9,5],[159,4,159,5],[148,3,148,4],[2,1,2,5],[4,1,4,2],[4,3,4,5],[5,1,5,2],[5,3,5,5],[6,1,6,2],[6,3,6,5],[7,1,7,2],[7,3,7,5],[3,1,3,2],[3,3,3,5]]}
[]
[null,"BESTELLIJST"]
[null,"Uw gegevens hieronder invullen a.u.b."]
[null,"(Bedrijfs) naam"]
[null,"t.a.v.","t.a.v."]
[null,"Adres"]
[null,"Postcode en Wooonplaats"]
[null,"E-mail adres"]
[]
[]
[null,"Aantal","omschrijving","afmeting  L-Br-H  / kleur / enz","prijs","Bedrag"]
[null,null,"Feesttafel","210 - 70 - 78",5,{"$f":"B12*E12","v":0}]
[null,null,"Feesttafel","220 - 50 of 60 - 78",5,{"$f":"B13*E13","v":0}]
[null,null,"Statafel","Ø 110 / hoogte 105 ",8,0]
[null,null,"Statafel ","Ø   60 / hoogte 105 ",6,0]
[null,null,"Klapstoel kunststof","bruin",1,0]
[null,null,"Stapelstoel kunststof","grijs",2,0]
[null,null,"Feestbank","220 - 24 - 49",2.5,0]
[null,null,"Barkruk","Ø 35 / hoogte 80 ",2.5,0]
[]
[null,null,"Garderobe - Syst","afmeting  L-Br-H  / kleur / enz","prijs","Bedrag"]
[null,null,"Kapstok   15 jassen","Ø   50 / hoogte 190 ",6,{"$f":"B22*E22","v":0}]
[null,null,"Kapstok    60 jassen","103 - 73 - 170",15,0]
[]
[null,null,"Stroom / Verlichting","afmeting  L-Br-H  / kleur / enz","prijs","Bedrag"]
[null,null,"Verdeelkast  63 A","1x32A   2x16A   8x220V",20,{"$f":"B26*E26","v":0}]
[null,null,"Kabel 32A","5 pol     380 V   32 A  (20 meter)",5,0]
[null,null,"Kabel 16A","5 pol     380 V   16 A  (20 meter)",5,0]
[null,null,"Haspel 20 - 35 meter","230 V  (20 - 35 meter)",3,0]
[null,null,"Kabel 10 meter","230 V   (10 meter)",2,0]
[null,null,"Verlengsnoer ","5 x 220V",1,0]
[null,null,"Prikkabel verlichting","10 meter  12 lampen 15 watt",10,0]
[null,null,"Luxe 4-bols lantaarn","2,3 m hoog",20,0]
[null,null,"Kerstverlichting","100 lamp",2.5,0]
[null,null,"Halogeen schijnwerper ","150 watt",5,0]
[]
[null,null,"Keukenapparatuur","afmeting  L-Br-H  / kleur / enz","prijs","Bedrag"]
[null,null,"Koffiecontainer  2 x 20 liter","98 - 39 - 90  380V 16A 5pol  9800W",80,{"$f":"B38*E38","v":0}]
[null,null,"Koffiezetapparaat","20 - 38 - 44    2x12 kops + 2 kannen",15,0]
[null,null,"Koffiezetapparaat","40 - 38 - 44    4x12 kops + 4 kannen",20,0]
[null,null,"Soepverwarmer","Ø 40 / hoogte 40      inh 10 liter ",15,0]
[null,null,"Chafing Dishes ","64 - 35 - 34  inh 950 / 1400 cl",10,0]
[null,null,"Chafing Dishes brandpasta","per stuk",2,0]
[null,null,"Inductie kookplaat dubbel","60 - 36 - 6      230 V  3500W",15,0]
[null,null,"Gaskooktoestel","2 pits (excl gas)",5,0]
[null,null,"Thermoskan","wit",1,0]
[null,null,"Flessenkoeling","167 - 58 - 86     360 liter  (2 deurs)",40,0]
[]
[null,null,"Porselein","afmeting  L-Br-H  / kleur / enz","prijs","Bedrag"]
[null,null,"Koffiekop","Ø  6,5  / hoogte 7,5 ",0.15,{"$f":"B50*E50","v":0}]
[null,null,"Koffieschotel","Ø  14",0.15,0]
[null,null,"Ontbijtbord","Ø  23,5",0.15,0]
[null,null,"Gebaksbord","Ø 16,5",0.15,0]
[null,null,"Soepkop","Ø 10,5 / hoogte 5,5 ",0.3,0]
[null,null,"Suikerpot",null,0.3,0]
[null,null,"Melkkannetje",null,0.3,0]
[]
[null,null,"Bestek en rvs","afmeting  L-Br-H  / kleur / enz","prijs","Bedrag"]
[null,null,"Tafelmes","21 cm",0.15,{"$f":"B59*E59","v":0}]
[null,null,"Tafelvork","19 cm",0.15,0]
[null,null,"Koffielepel ","15 cm",0.15,0]
[null,null,"Dessertlepel ","17 cm",0.15,0]
[null,null,"Soeplepel","20 cm",0.15,0]
[null,null,"Soepkop ","Ø 13,5 / hoogte 6,5 ",0.3,0]
[null,null,"Vlaai-schep","20 cm",0.15,0]
[null,null,"Gebaksvorkje","17 cm",0.15,0]
[null,null,"Vlaai-schotel","Ø  32,5",2,0]
[null,null,"Kurketrekker / flesopener",null,0.5,0]
[null,null,"Ovale schaal","30 cm",2,0]
[null,null,"Ovale schaal","40 cm",2,0]
[null,null,"Ovale schaal","50 cm",2,0]
[]
[null,null,"Glaswerk","afmeting  L-Br-H  / kleur / enz","prijs","Bedrag"]
[null,null,"Bierglas ''pijpje'' ","18 cl",0.15,{"$f":"B74*E74","v":0}]
[null,null,"Bierglas ''klein''","16 cl",0.15,0]
[null,null,"Longdrinkglas","22 cl",0.15,0]
[null,null,"Wijnglas","10 cl",0.15,0]
[null,null,"Wijnglas de luxe","16 cl - 19 cm hoog",0.2,0]
[null,null,"Borrelglas","  4 cl",0.15,0]
[null,null,"Whiskyglas","25 cl",0.15,0]
[null,null,"Champagneglas / Sektglas","19 cl",0.2,0]
[]
[null,null,"Tafeldecoratie / sierplanten","afmeting  L-Br-H  / kleur / enz","prijs","Bedrag"]
[null,null,"Bloemstukje potje","rose/wit",2,{"$f":"B84*E84","v":0}]
[null,null,"Vaasje glas","Ø 6 / hoogte 17 ",1,0]
[null,null,"Tafellinnen ","afm 1,5x1,5  rood / geel / wit",4,0]
[null,null,"Tafellinnen ","afm 1,5x2,5  rood / geel / wit",6,0]
[null,null,"Statafelrok","Ø 110 m  rood / geel / wit",8,0]
[null,null,"Omrandingsgordijn","afm 350 x 75",10,0]
[null,null,"Palmboom","2m hoog",10,{"$f":"B90*E90","v":0}]
[null,null,"Kunstficus","1,5m hoog",5,{"$f":"B91*E91","v":0}]
[null,null,"Kunstboom","Ø 80 / hoogte 230 ",25,{"$f":"B92*E92","v":0}]
[null,null,"Kunstbloemstuk klein",null,5,{"$f":"B93*E93","v":0}]
[]
[null,null,"Diverse","afmeting  L-Br-H  / kleur / enz","prijs","Bedrag"]
[null,null,"Broodmandje ovaal riet","26 - 20 - 6 ",0.5,{"$f":"B96*E96","v":0}]
[null,null,"Broodmand  riet","40 - 30 - 8",1,0]
[null,null,"Dienblad rond","Ø 32 - 35 - 40",1,0]
[null,null,"Dienblad","afm 55 - 35 ",1,0]
[null,null,"Asbak ",null,0.25,0]
[null,null,"Asverzamelaar - rvs",null,3,0]
[null,null,"Afvalbak plastic","38 - 32 - 50           50 liter ",3,0]
[null,null,"IJs-emmer","Ø  17  - hoogte 18",2.5,0]
[null,null,"Ijsblokjesmachine ","36 - 39 - 40",25,0]
[null,null,"Parasol","Ø 180 hoogte 150",4,0]
[null,null,"Viltjeshouder",null,0.3,0]
[null,null,"Spiegel","110 - 70",7,0]
[null,null,"Tap + spoelunits klein","130 x 55 x 90 (2 tapkranen)",40,0]
[null,null,"Tap + spoelunits","200 x 55 x 90 (2 tapkranen)",40,0]
[null,null,"Tafelkoeler ","  65 x 45 x 55 (2 tapkranen)",20,0]
[null,null,"Drupzift","60 x 50",2.5,0]
[null,null,"Afscheidingswand ","per meter",12,0]
[null,null,"Podium elementen","195 - 95 - 40/60 hoog",5,0]
[null,null,"Gordijnen","geel / rose  -  per meter hoogte 230",7,0]
[null,null,"Gekleurd papier","per meter  1,5 m breed",2,0]
[null,null,"Discotheek",null,150,0]
[null,null,"opbouw aankleding","per uur",20,0]
[null,null,"Spoelborstel met afschuimer",null,1,0]
[null,null,"Tafelvoetbalspel Topper 2000","140 - 74 - 95 ",50,0]
[null,null,"Verwarmingslamp ","2000W     230V",10,0]
[null,null,"Elec warmelucht generator","25-25-40  Capaciteit 3kw 13A 230V",10,0]
[null,null,"Gasheather","Capaciteit  20 - 52 kw",20,0]
[null,null,"Gasfles",null,25,0]
[null,null,"Steekwagen","Max 80 kg ",5,0]
[null,null,"Serveerwagen","3 etages",10,0]
[]
[null,null,"Dranken e.d.","afmeting / kleur / enz","prijs","Bedrag"]
[null,null,"Pils Brand","50 liter fust",180,{"$f":"B128*E128","v":0}]
[null,null,"Pils Brand","30 liter fust",110,0]
[null,null,"Coca cola","1,5 liter",2.5,0]
[null,null,"Coca cola  light","1,5 liter",2.5,0]
[null,null,"7 up","1 liter",2,0]
[null,null,"Sisi limo","1 liter",2,0]
[null,null,"Spa rood","1,5 liter",2,0]
[null,null,"Spa blauw","1,5 liter",2,0]
[null,null,"Lemon, Tonic, Cassis  enz ","0,2 liter",1,0]
[null,null,"Oud bruin","0,3 liter",1,0]
[null,null,"Appelsap","0,75 liter",2,0]
[null,null,"Malt / Radler  0/0","0,3 liter",1,0]
[null,null,"Witte wijn Kapellener","0,75 liter zoet",6,0]
[null,null,"Witte wijn Cote du Rhone","0,75 liter droog",6,0]
[null,null,"Koolzuur","verbruik per fust",2,0]
[]
[null,null,"Transport",null,"prijs","Bedrag"]
[null,null,"Aanhangwagen ","per dag",25,{"$f":"B145*E145","v":0}]
[null,null,"Transportkosten tot 5 km",null,20,0]
[]
[]
[null,null,null,"Totaalbedrag",null,{"$f":"SUM(F12:F146)","v":0}]
[]
[]
[]
[]
[]
[]
[]
[]
[]
[]
[null,null,"Café Sport V.O.F.\nMiriam en Leo Seroo\nGrachtstraat 1a\n6287 AE Eys\n","Hartelijk dank voor het in ons gestelde vertrouwen.\n\nIBAN NL79RABO0147509734 \nt.n.v. Café Sport V.O.F.","Tel: 043 4519041\nMobiel: 06 51591124\nE-mail: info@cafe-sport-eys.nl\nWebsite: www.cafe-sport-eys.nl"]